fUST/lending_fUST_20260516
["ID","MTS","AMOUNT","RATE_DAILY","PERIOD"]
[422358104,1778869832000,-500.0,0.00010699,2]
[422358105,1778869832000,-500.0,0.00010699,2]
[422358094,1778869832000,-500.0,0.00010699,2]
[422358092,1778869832000,-500.0,0.00010699,2]
[422358096,1778869832000,-500.0,0.00010699,2]
[422358090,1778869832000,-500.0,0.00010699,2]
[422358088,1778869832000,-500.0,0.00010699,2]
[422358086,1778869832000,-276.34617532,0.00010699,2]
[422358101,1778869832000,-500.0,0.00010699,2]
[422358100,1778869832000,-500.0,0.00010699,2]
[422358199,1778869838000,-869586.55358231,0.000107,2]
[422358211,1778869838000,-2423.77,0.000107,2]
[422358202,1778869838000,-65.46391548,0.000107,2]
[422358204,1778869838000,-867.83080023,0.000107,2]
[422358531,1778869840000,-394.65,0.000107,2]
[422358540,1778869841000,-1788.92292671,0.000107,2]
[422358893,1778869843000,-928.0557,0.000107,2]
[422358894,1778869844000,-1930.04165381,0.000107,2]
[422358907,1778869846000,-1847.30262089,0.000107,2]
[422358902,1778869846000,-152.0,9.642e-05,7]
[422358904,1778869846000,-152.0,9.642e-05,7]
[422358905,1778869846000,-152.0,9.647e-05,7]
[422358906,1778869846000,-5000.0,0.00010593,2]
[422358908,1778869846000,-161.65638237,0.00010706,2]
[422358910,1778869846000,-160.0,0.00010706,2]
[422358909,1778869846000,-160.0,0.00010706,2]
[422358912,1778869846000,-152.0,0.00010727,2]
[422358914,1778869846000,-1104.4220265,0.00010761,2]
[422358916,1778869846000,-955.56538895,0.00010761,2]
[422358913,1778869846000,-181.0838303,0.00010761,2]
[422358919,1778869846000,-470.09113638,0.000108,2]
[422358917,1778869846000,-454.60663633,0.000108,2]
[422358915,1778869846000,-444.80482655,0.00010761,2]
[422358918,1778869846000,-4186.69595946,0.000108,2]
[422358911,1778869846000,-160.0,0.00010706,2]
[422358968,1778871032000,-5000.0,8.569e-05,2]
[422358970,1778871032000,-394.19991203,8.787e-05,2]
[422358969,1778871032000,-318.15688774,8.656e-05,2]
[422358971,1778871032000,-151.0,9.391e-05,2]
[422358972,1778871032000,-1200.0,9.609e-05,2]
[422358974,1778871032000,-200.0,0.00010131,2]
[422358976,1778871032000,-300.0,0.00010205,2]
[422358975,1778871032000,-300.0,0.00010205,2]
[422358973,1778871032000,-152.0,9.647e-05,7]
[422358978,1778871032000,-6308.34319775,0.00010206,2]
[422358980,1778871032000,-289.2459599,0.00010238,2]
[422358979,1778871032000,-6879.2910065,0.00010238,2]
[422358982,1778871032000,-151.0,0.00010239,2]
[422358981,1778871032000,-151.0,0.00010238,2]
[422358983,1778871032000,-151.0,0.00010239,2]
[422358984,1778871032000,-8022.36093608,0.00010305,2]
[422358985,1778871032000,-2870.0,0.00010305,2]
[422358977,1778871032000,-300.0,0.00010205,2]
[422359065,1778871038000,-500.0,0.00010405,2]
[422359061,1778871038000,-500.0,0.00010405,2]
[422359059,1778871038000,-500.0,0.00010405,2]
[422359063,1778871038000,-500.0,0.00010405,2]
[422359039,1778871038000,-152.0,9.647e-05,7]
[422359055,1778871038000,-1314661.68932381,0.00010305,2]
[422359053,1778871038000,-51155.03982764,0.00010305,2]
[422359041,1778871038000,-3421.67861095,0.00010305,2]
[422359069,1778871038000,-500.0,0.00010405,2]
[422359057,1778871038000,-500.0,0.00010405,2]
[422359067,1778871038000,-500.0,0.00010405,2]
[422359076,1778871038000,-500.0,0.00010405,2]
[422359079,1778871038000,-500.0,0.00010405,2]
[422359080,1778871038000,-500.0,0.00010405,2]
[422359083,1778871038000,-500.0,0.00010405,2]
[422359085,1778871038000,-557.89476586,0.00010405,2]
[422359089,1778871038000,-500.0,0.00010405,2]
[422359087,1778871038000,-500.0,0.00010405,2]
[422359097,1778871038000,-500.0,0.00010405,2]
[422359098,1778871038000,-500.0,0.00010405,2]
[422359092,1778871038000,-500.0,0.00010405,2]
[422359094,1778871038000,-500.0,0.00010405,2]
[422359091,1778871038000,-500.0,0.00010405,2]
[422359074,1778871038000,-500.0,0.00010405,2]
[422359154,1778871039000,-500.0,0.00010405,2]
[422359169,1778871039000,-500.0,0.00010405,2]
[422359165,1778871039000,-500.0,0.00010405,2]
[422359161,1778871039000,-500.0,0.00010405,2]
[422359155,1778871039000,-500.0,0.00010405,2]
[422359175,1778871039000,-500.0,0.00010405,2]
[422359171,1778871039000,-500.0,0.00010405,2]
[422359157,1778871039000,-500.0,0.00010405,2]
[422359173,1778871039000,-500.0,0.00010405,2]
[422359159,1778871039000,-500.0,0.00010405,2]
[422359163,1778871039000,-500.0,0.00010405,2]
[422359187,1778871039000,-500.0,0.00010405,2]
[422359177,1778871039000,-500.0,0.00010405,2]
[422359179,1778871039000,-500.0,0.00010405,2]
[422359181,1778871039000,-500.0,0.00010405,2]
[422359183,1778871039000,-500.0,0.00010405,2]
[422359193,1778871039000,-500.0,0.00010405,2]
[422359197,1778871039000,-500.0,0.00010405,2]
[422359199,1778871039000,-500.0,0.00010405,2]
[422359189,1778871039000,-500.0,0.00010405,2]
[422359201,1778871039000,-500.0,0.00010405,2]
[422359191,1778871039000,-500.0,0.00010405,2]
[422359167,1778871039000,-500.0,0.00010405,2]
[422359152,1778871039000,-500.0,0.00010405,2]
[422359103,1778871039000,-483.22533602,0.00010405,2]
[422359144,1778871039000,-500.0,0.00010405,2]
[422359195,1778871039000,-500.0,0.00010405,2]
[422359101,1778871039000,-500.0,0.00010405,2]
[422359105,1778871039000,-500.0,0.00010405,2]
[422359107,1778871039000,-326.41176082,0.00010405,2]
[422359111,1778871039000,-197.37376011,0.00010405,2]
[422359109,1778871039000,-500.0,0.00010405,2]
[422359112,1778871039000,-500.0,0.00010405,2]
[422359125,1778871039000,-500.0,0.00010405,2]
[422359123,1778871039000,-500.0,0.00010405,2]
[422359114,1778871039000,-526.9265703,0.00010405,2]
[422359116,1778871039000,-500.0,0.00010405,2]
[422359146,1778871039000,-500.0,0.00010405,2]
[422359119,1778871039000,-181.37301875,0.00010405,2]
[422359127,1778871039000,-500.0,0.00010405,2]
[422359129,1778871039000,-500.0,0.00010405,2]
[422359131,1778871039000,-500.0,0.00010405,2]
[422359133,1778871039000,-500.0,0.00010405,2]
[422359134,1778871039000,-615.53817317,0.00010405,2]
[422359136,1778871039000,-500.0,0.00010405,2]
[422359138,1778871039000,-500.0,0.00010405,2]
[422359148,1778871039000,-500.0,0.00010405,2]
[422359150,1778871039000,-500.0,0.00010405,2]
[422359142,1778871039000,-500.0,0.00010405,2]
[422359141,1778871039000,-500.0,0.00010405,2]
[422359121,1778871039000,-500.0,0.00010405,2]
[422359205,1778871039000,-500.0,0.00010405,2]
[422359185,1778871039000,-500.0,0.00010405,2]
[422359207,1778871039000,-508.50176592,0.00010405,2]
[422359276,1778871039000,-161.65638237,0.00010708,2]
[422359274,1778871039000,-160.0,0.00010708,2]
[422359264,1778871039000,-6586.20406468,0.00010706,2]
[422359278,1778871039000,-160.0,0.00010708,2]
[422359268,1778871039000,-407.84366906,0.00010706,2]
[422359272,1778871039000,-3666.92242851,0.00010706,2]
[422359270,1778871039000,-1631.37467623,0.00010706,2]
[422359280,1778871039000,-160.0,0.00010708,2]
[422359282,1778871039000,-162.380719,0.00010716,2]
[422359284,1778871039000,-644.79446246,0.00010716,2]
[422359286,1778871039000,-465.1558962,0.00010787,2]
[422359290,1778871039000,-160.37861485,0.000108,2]
[422359288,1778871039000,-152.4748697,0.000108,2]
[422359300,1778871039000,-317.14,0.0001081,2]
[422359302,1778871039000,-5321.02248564,0.00010858,2]
[422359294,1778871039000,-164.35281627,0.000108,2]
[422359292,1778871039000,-158.61419716,0.000108,2]
[422359298,1778871039000,-164.5562762,0.000108,2]
[422359304,1778871039000,-76468.70642691,0.000109,2]
[422359296,1778871039000,-363.68530906,0.000108,2]
[422359309,1778871039000,-175565.12711546,0.000109,2]
[422359306,1778871039000,-6090.27881783,0.000109,2]
[422359203,1778871039000,-500.0,0.00010405,2]
[422359262,1778871039000,-4573.75282269,0.00010706,2]
[422359260,1778871039000,-2927.20180652,0.00010706,2]
[422359266,1778871039000,-8955.59097695,0.00010706,2]
[422359256,1778871039000,-731.80045163,0.00010706,2]
[422359209,1778871039000,-500.0,0.00010405,2]
[422359221,1778871039000,-500.0,0.00010405,2]
[422359223,1778871039000,-500.0,0.00010405,2]
[422359226,1778871039000,-500.0,0.00010405,2]
[422359211,1778871039000,-500.0,0.00010405,2]
[422359227,1778871039000,-500.0,0.00010405,2]
[422359217,1778871039000,-500.0,0.00010405,2]
[422359258,1778871039000,-1646.55101617,0.00010706,2]
[422359213,1778871039000,-500.0,0.00010405,2]
[422359215,1778871039000,-500.0,0.00010405,2]
[422359229,1778871039000,-500.0,0.00010405,2]
[422359231,1778871039000,-500.0,0.00010405,2]
[422359219,1778871039000,-530.53997039,0.00010405,2]
[422359233,1778871039000,-500.0,0.00010405,2]
[422359235,1778871039000,-164.5562762,0.0001041,2]
[422359245,1778871039000,-4570.7408919,0.00010671,2]
[422359247,1778871039000,-59473.1455064,0.00010671,2]
[422359243,1778871039000,-152.0,0.00010655,2]
[422359241,1778871039000,-152.0,0.00010655,2]
[422359254,1778871039000,-182.95011291,0.00010706,2]
[422359251,1778871039000,-500.0,0.00010679,2]
[422359249,1778871039000,-1730.3106835,0.00010671,2]
[422359239,1778871039000,-1680.0,0.0001057,2]
[422359252,1778871039000,-363.68530906,0.000107,2]
[422359237,1778871039000,-200.0,0.0001051,2]
[422359502,1778871041000,-500.0,0.00010304,2]
[422359490,1778871041000,-4102.10230061,0.00010202,2]
[422359485,1778871041000,-152.0,9.652e-05,7]
[422359483,1778871041000,-152.0,9.647e-05,7]
[422359487,1778871041000,-152.0,9.652e-05,7]
[422359492,1778871041000,-897.89769939,0.00010202,2]
[422359494,1778871041000,-500.0,0.00010304,2]
[422359496,1778871041000,-500.0,0.00010304,2]
[422359498,1778871041000,-456.64214194,0.00010304,2]
[422359500,1778871041000,-500.0,0.00010304,2]
[422359504,1778871041000,-115.46015867,0.00010304,2]
[422359506,1778871041000,-384.53984133,0.00010304,2]
[422359533,1778871041000,-969.38670299,0.000109,2]
[422359527,1778871041000,-2522.3736019,0.000109,2]
[422359529,1778871041000,-2304.04507,0.000109,2]
[422359525,1778871041000,-500.0,0.00010304,2]
[422359523,1778871041000,-500.0,0.00010304,2]
[422359519,1778871041000,-500.0,0.00010304,2]
[422359508,1778871041000,-500.0,0.00010304,2]
[422359517,1778871041000,-500.0,0.00010304,2]
[422359510,1778871041000,-500.0,0.00010304,2]
[422359513,1778871041000,-500.0,0.00010304,2]
[422359515,1778871041000,-500.0,0.00010304,2]
[422359521,1778871041000,-500.0,0.00010304,2]
[422359851,1778871043000,-152.0,9.657e-05,7]
[422359853,1778871043000,-8006.14716759,0.000109,2]
[422359877,1778871044000,-7959.4,0.000109,2]
[422359885,1778871044000,-161784.12937856,0.000109,2]
[422359925,1778871046000,-721.59115642,0.000109,2]
[422359928,1778871047000,-5999.41189998,0.000109,2]
[422359929,1778871047000,-37635.36614869,0.000109,2]
[422359955,1778872232000,-855.13661551,9.238e-05,2]
[422359970,1778872232000,-3960.81112434,9.506e-05,2]
[422359968,1778872232000,-438.11437354,9.425e-05,2]
[422359975,1778872232000,-423.81855765,9.506e-05,2]
[422359972,1778872232000,-1205.6713863,9.506e-05,2]
[422359963,1778872232000,-456.3497628,9.395e-05,2]
[422359961,1778872232000,-269.8010833,9.395e-05,2]
[422359959,1778872232000,-377.01279587,9.363e-05,2]
[422359965,1778872232000,-3012.27729942,9.406e-05,2]
[422359966,1778872232000,-151.0,9.417e-05,2]
[422359957,1778872232000,-4144.86338449,9.238e-05,2]
[422360125,1778872238000,-412.09886111,9.506e-05,2]
[422360117,1778872238000,-345.92914224,9.506e-05,2]
[422360126,1778872238000,-7058.34195714,9.606e-05,2]
[422360128,1778872238000,-1200.0,9.646e-05,2]
[422360130,1778872238000,-152.0,9.647e-05,7]
[422360138,1778872238000,-300.0,0.00010202,2]
[422360136,1778872238000,-9191.44597269,0.00010006,2]
[422360134,1778872238000,-8481.19228685,9.906e-05,2]
[422360142,1778872238000,-565.02350462,0.00010204,2]
[422360140,1778872238000,-300.0,0.00010202,2]
[422360132,1778872238000,-152.0,9.647e-05,7]
[422360180,1778872239000,-500.0,0.00010204,2]
[422360176,1778872239000,-500.0,0.00010204,2]
[422360178,1778872239000,-230.8052505,0.00010204,2]
[422360190,1778872239000,-500.0,0.00010204,2]
[422360186,1778872239000,-500.0,0.00010204,2]
[422360184,1778872239000,-500.0,0.00010204,2]
[422360174,1778872239000,-500.0,0.00010204,2]
[422360172,1778872239000,-500.0,0.00010204,2]
[422360171,1778872239000,-475.45191155,0.00010204,2]
[422360169,1778872239000,-500.0,0.00010204,2]
[422360165,1778872239000,-500.0,0.00010204,2]
[422360188,1778872239000,-500.0,0.00010204,2]
[422360167,1778872239000,-347.86915654,0.00010204,2]
[422360161,1778872239000,-500.0,0.00010204,2]
[422360157,1778872239000,-500.0,0.00010204,2]
[422360159,1778872239000,-500.0,0.00010204,2]
[422360155,1778872239000,-500.0,0.00010204,2]
[422360153,1778872239000,-500.0,0.00010204,2]
[422360151,1778872239000,-500.0,0.00010204,2]
[422360148,1778872239000,-500.0,0.00010204,2]
[422360149,1778872239000,-500.0,0.00010204,2]
[422360146,1778872239000,-500.0,0.00010204,2]
[422360144,1778872239000,-500.0,0.00010204,2]
[422360163,1778872239000,-500.0,0.00010204,2]
[422360192,1778872239000,-500.0,0.00010204,2]
[422360222,1778872239000,-500.0,0.00010204,2]
[422360194,1778872239000,-500.0,0.00010204,2]
[422360182,1778872239000,-500.0,0.00010204,2]
[422360236,1778872239000,-500.0,0.00010204,2]
[422360237,1778872239000,-18618.58647847,0.00010205,2]
[422360230,1778872239000,-500.0,0.00010204,2]
[422360233,1778872239000,-500.0,0.00010204,2]
[422360240,1778872239000,-1380860.31524332,0.00010205,2]
[422360228,1778872239000,-500.0,0.00010204,2]
[422360219,1778872239000,-500.0,0.00010204,2]
[422360221,1778872239000,-500.0,0.00010204,2]
[422360226,1778872239000,-500.0,0.00010204,2]
[422360224,1778872239000,-500.0,0.00010204,2]
[422360232,1778872239000,-450.0,0.00010204,2]
[422360205,1778872239000,-646.23534116,0.00010204,2]
[422360217,1778872239000,-500.0,0.00010204,2]
[422360207,1778872239000,-500.0,0.00010204,2]
[422360215,1778872239000,-588.73977838,0.00010204,2]
[422360213,1778872239000,-500.0,0.00010204,2]
[422360211,1778872239000,-500.0,0.00010204,2]
[422360200,1778872239000,-500.0,0.00010204,2]
[422360204,1778872239000,-500.0,0.00010204,2]
[422360196,1778872239000,-592.59641841,0.00010204,2]
[422360202,1778872239000,-511.68009082,0.00010204,2]
[422360198,1778872239000,-500.0,0.00010204,2]
[422360209,1778872239000,-500.0,0.00010204,2]
[422360825,1778872244000,-1779.32204679,9.411e-05,2]
[422360857,1778872244000,-3220.67795321,9.411e-05,2]
[422360860,1778872244000,-4970.12204679,0.00010204,2]
[422360952,1778872247000,-8849.28157242,0.00010204,2]
[422360951,1778872247000,-285.7176123,9.395e-05,2]
[422361004,1778873432000,-300.0,8.283e-05,2]
[422360983,1778873432000,-457.26193262,8.038e-05,2]
[422360990,1778873432000,-423.92082829,8.038e-05,2]
[422360996,1778873432000,-846.63228893,8.119e-05,2]
[422360995,1778873432000,-3636.7568441,8.038e-05,2]
[422361000,1778873432000,-382.80144237,8.243e-05,2]
[422360998,1778873432000,-4542.698,8.201e-05,2]
[422360993,1778873432000,-482.06039499,8.038e-05,2]
[422361002,1778873432000,-300.0,8.283e-05,2]
[422361013,1778873432000,-300.0,8.283e-05,2]
[422361019,1778873432000,-160.322468,8.538e-05,2]
[422361007,1778873432000,-300.0,8.283e-05,2]
[422361030,1778873432000,-122.53708605,8.581e-05,2]
[422361032,1778873432000,-5587.85030623,9.024e-05,2]
[422361025,1778873432000,-28.46291395,8.581e-05,2]
[422361036,1778873432000,-316.376,9.024e-05,2]
[422361016,1778873432000,-1200.0,8.283e-05,2]
[422361010,1778873432000,-300.0,8.283e-05,2]
[422361022,1778873432000,-151.0,8.573e-05,2]
[422361196,1778873438000,-500.0,0.00010004,2]
[422361203,1778873438000,-2351.0,0.00010022,2]
[422361185,1778873438000,-500.0,0.00010004,2]
[422361198,1778873438000,-200784.50115056,0.00010005,2]
[422361199,1778873438000,-500.0,0.00010022,2]
[422361201,1778873438000,-587.0,0.00010022,2]
[422361188,1778873438000,-500.0,0.00010004,2]
[422361190,1778873438000,-350.0,0.00010004,2]
[422361232,1778873438000,-150.30811288,0.00010895,2]
[422361192,1778873438000,-500.0,0.00010004,2]
[422361205,1778873438000,-1247.4339365,0.00010103,2]
[422361225,1778873438000,-11949.03055844,0.000108,2]
[422361207,1778873438000,-451.705702,0.00010243,2]
[422361215,1778873438000,-161.65638237,0.00010662,2]
[422361211,1778873438000,-162.38,0.00010421,2]
[422361226,1778873438000,-12751.2187588,0.00010848,2]
[422361213,1778873438000,-160.0,0.00010662,2]
[422361222,1778873438000,-218.21118544,0.000108,2]
[422361228,1778873438000,-178.22859509,0.00010893,2]
[422361234,1778873438000,-156566.81047753,0.000109,2]
[422361218,1778873438000,-160.0,0.00010662,2]
[422361183,1778873438000,-238.47059346,0.00010004,2]
[422361209,1778873438000,-500.0,0.00010296,2]
[422361177,1778873438000,-288.06626871,0.00010004,2]
[422361132,1778873438000,-4785.67773315,9.024e-05,2]
[422361169,1778873438000,-500.0,0.00010004,2]
[422361117,1778873438000,-5000.0,9.024e-05,2]
[422361134,1778873438000,-420.0,9.111e-05,2]
[422361136,1778873438000,-1680.0,9.111e-05,2]
[422361147,1778873438000,-500.0,0.00010004,2]
[422361154,1778873438000,-500.0,0.00010004,2]
[422361137,1778873438000,-193.2794237,9.403e-05,2]
[422361141,1778873438000,-151.0,9.403e-05,2]
[422361148,1778873438000,-395.51645324,0.00010004,2]
[422361150,1778873438000,-500.0,0.00010004,2]
[422361139,1778873438000,-325.8907786,9.403e-05,2]
[422361143,1778873438000,-325.8747223,9.403e-05,2]
[422361152,1778873438000,-500.0,0.00010004,2]
[422361145,1778873438000,-152.0,9.652e-05,7]
[422361156,1778873438000,-500.0,0.00010004,2]
[422361158,1778873438000,-500.0,0.00010004,2]
[422361160,1778873438000,-500.0,0.00010004,2]
[422361161,1778873438000,-500.0,0.00010004,2]
[422361164,1778873438000,-500.0,0.00010004,2]
[422361165,1778873438000,-500.0,0.00010004,2]
[422361171,1778873438000,-500.0,0.00010004,2]
[422361167,1778873438000,-500.0,0.00010004,2]
[422361179,1778873438000,-500.0,0.00010004,2]
[422361175,1778873438000,-177.11784487,0.00010004,2]
[422361173,1778873438000,-500.0,0.00010004,2]
[422361217,1778873438000,-160.0,0.00010662,2]
[422361182,1778873438000,-500.0,0.00010004,2]
[422361230,1778873438000,-182.162,0.00010895,2]
[422361297,1778873438000,-152.106118,0.00010958,2]
[422361287,1778873438000,-152.106118,0.00010958,2]
[422361289,1778873438000,-152.106118,0.00010958,2]
[422361300,1778873438000,-152.106118,0.00010958,2]
[422361298,1778873438000,-152.106118,0.00010958,2]
[422361291,1778873438000,-152.106118,0.00010958,2]
[422361302,1778873438000,-152.106118,0.00010958,2]
[422361304,1778873438000,-152.106118,0.00010958,2]
[422361293,1778873438000,-152.106118,0.00010958,2]
[422361307,1778873438000,-152.106118,0.00010958,2]
[422361309,1778873438000,-152.106118,0.00010958,2]
[422361295,1778873438000,-152.106118,0.00010958,2]
[422361311,1778873438000,-152.106118,0.00010958,2]
[422361322,1778873438000,-152.106118,0.00010958,2]
[422361324,1778873438000,-152.106118,0.00010958,2]
[422361328,1778873438000,-152.106118,0.00010958,2]
[422361326,1778873438000,-152.106118,0.00010958,2]
[422361312,1778873438000,-152.106118,0.00010958,2]
[422361318,1778873438000,-152.106118,0.00010958,2]
[422361330,1778873438000,-152.106118,0.00010958,2]
[422361314,1778873438000,-152.106118,0.00010958,2]
[422361316,1778873438000,-152.106118,0.00010958,2]
[422361337,1778873438000,-152.106118,0.00010958,2]
[422361220,1778873438000,-218.21118544,0.000107,2]
[422361320,1778873438000,-152.106118,0.00010958,2]
[422361285,1778873438000,-152.106118,0.00010958,2]
[422361194,1778873438000,-500.0,0.00010004,2]
[422361271,1778873438000,-152.106118,0.00010958,2]
[422361238,1778873438000,-218.21118544,0.000109,2]
[422361240,1778873438000,-250.0,0.00010946,2]
[422361242,1778873438000,-749.7844,0.00010958,2]
[422361236,1778873438000,-489565.91588282,0.000109,2]
[422361243,1778873438000,-1136.8985,0.00010958,2]
[422361245,1778873438000,-1886.6829,0.00010958,2]
[422361251,1778873438000,-152.106118,0.00010958,2]
[422361256,1778873438000,-152.106118,0.00010958,2]
[422361249,1778873438000,-152.106118,0.00010958,2]
[422361253,1778873438000,-152.106118,0.00010958,2]
[422361254,1778873438000,-152.106118,0.00010958,2]
[422361258,1778873438000,-152.106118,0.00010958,2]
[422361247,1778873438000,-152.106118,0.00010958,2]
[422361262,1778873438000,-152.106118,0.00010958,2]
[422361260,1778873438000,-152.106118,0.00010958,2]
[422361275,1778873438000,-152.106118,0.00010958,2]
[422361281,1778873438000,-152.106118,0.00010958,2]
[422361283,1778873438000,-152.106118,0.00010958,2]
[422361273,1778873438000,-152.106118,0.00010958,2]
[422361277,1778873438000,-152.106118,0.00010958,2]
[422361268,1778873438000,-152.106118,0.00010958,2]
[422361264,1778873438000,-152.106118,0.00010958,2]
[422361266,1778873438000,-152.106118,0.00010958,2]
[422361269,1778873438000,-152.106118,0.00010958,2]
[422361279,1778873438000,-152.106118,0.00010958,2]
[422361421,1778873439000,-500.0,0.00010958,2]
[422361413,1778873439000,-500.0,0.00010958,2]
[422361415,1778873439000,-545.96,0.00010958,2]
[422361417,1778873439000,-1044.92,0.00010958,2]
[422361419,1778873439000,-500.0,0.00010958,2]
[422361411,1778873439000,-500.0,0.00010958,2]
[422361398,1778873439000,-500.0,0.00010958,2]
[422361407,1778873439000,-1351.49,0.00010958,2]
[422361405,1778873439000,-500.0,0.00010958,2]
[422361403,1778873439000,-500.0,0.00010958,2]
[422361400,1778873439000,-500.0,0.00010958,2]
[422361423,1778873439000,-810.96,0.00010958,2]
[422361409,1778873439000,-976.39,0.00010958,2]
[422361427,1778873439000,-1448.19,0.00010958,2]
[422361454,1778873439000,-500.0,0.00010958,2]
[422361429,1778873439000,-500.0,0.00010958,2]
[422361431,1778873439000,-500.0,0.00010958,2]
[422361433,1778873439000,-500.0,0.00010958,2]
[422361439,1778873439000,-729.43,0.00010958,2]
[422361435,1778873439000,-500.0,0.00010958,2]
[422361437,1778873439000,-843.56,0.00010958,2]
[422361441,1778873439000,-1246.22,0.00010958,2]
[422361445,1778873439000,-500.0,0.00010958,2]
[422361450,1778873439000,-500.0,0.00010958,2]
[422361447,1778873439000,-500.0,0.00010958,2]
[422361443,1778873439000,-2457.29,0.00010958,2]
[422361396,1778873439000,-500.0,0.00010958,2]
[422361448,1778873439000,-500.0,0.00010958,2]
[422361456,1778873439000,-1420.79,0.00010958,2]
[422361426,1778873439000,-500.0,0.00010958,2]
[422361392,1778873439000,-500.0,0.00010958,2]
[422361363,1778873439000,-886.0,0.00010958,2]
[422361401,1778873439000,-2465.78,0.00010958,2]
[422361344,1778873439000,-152.106118,0.00010958,2]
[422361346,1778873439000,-152.106118,0.00010958,2]
[422361339,1778873439000,-152.106118,0.00010958,2]
[422361350,1778873439000,-152.106118,0.00010958,2]
[422361341,1778873439000,-152.106118,0.00010958,2]
[422361353,1778873439000,-152.106118,0.00010958,2]
[422361348,1778873439000,-152.106118,0.00010958,2]
[422361352,1778873439000,-152.106118,0.00010958,2]
[422361342,1778873439000,-152.106118,0.00010958,2]
[422361366,1778873439000,-672.35,0.00010958,2]
[422361368,1778873439000,-500.0,0.00010958,2]
[422361355,1778873439000,-152.106118,0.00010958,2]
[422361370,1778873439000,-500.0,0.00010958,2]
[422361373,1778873439000,-500.0,0.00010958,2]
[422361372,1778873439000,-974.95,0.00010958,2]
[422361375,1778873439000,-1442.38,0.00010958,2]
[422361357,1778873439000,-888.81,0.00010958,2]
[422361377,1778873439000,-500.0,0.00010958,2]
[422361458,1778873439000,-539.9,0.00010958,2]
[422361359,1778873439000,-500.0,0.00010958,2]
[422361364,1778873439000,-504.76,0.00010958,2]
[422361379,1778873439000,-500.0,0.00010958,2]
[422361361,1778873439000,-500.0,0.00010958,2]
[422361381,1778873439000,-1198.95,0.00010958,2]
[422361383,1778873439000,-2018.66,0.00010958,2]
[422361385,1778873439000,-500.0,0.00010958,2]
[422361387,1778873439000,-500.0,0.00010958,2]
[422361389,1778873439000,-500.0,0.00010958,2]
[422361390,1778873439000,-500.38,0.00010958,2]
[422361394,1778873439000,-500.0,0.00010958,2]
[422361459,1778873439000,-500.0,0.00010958,2]
[422361452,1778873439000,-865.56,0.00010958,2]
[422361476,1778873439000,-500.0,0.00010958,2]
[422361538,1778873439000,-156.079757,0.00010958,2]
[422361542,1778873439000,-156.079757,0.00010958,2]
[422361546,1778873439000,-156.079757,0.00010958,2]
[422361544,1778873439000,-156.079757,0.00010958,2]
[422361550,1778873439000,-156.079757,0.00010958,2]
[422361540,1778873439000,-156.079757,0.00010958,2]
[422361563,1778873439000,-156.079757,0.00010958,2]
[422361564,1778873439000,-156.079757,0.00010958,2]
[422361555,1778873439000,-156.079757,0.00010958,2]
[422361559,1778873439000,-156.079757,0.00010958,2]
[422361553,1778873439000,-156.079757,0.00010958,2]
[422361549,1778873439000,-156.079757,0.00010958,2]
[422361556,1778873439000,-156.079757,0.00010958,2]
[422361561,1778873439000,-156.079757,0.00010958,2]
[422361517,1778873439000,-156.079757,0.00010958,2]
[422361566,1778873439000,-156.079757,0.00010958,2]
[422361580,1778873439000,-156.079757,0.00010958,2]